[Event "Polish Youth 1st League 2022"]
[Site "Lublin"]
[Date "2022.07.03"]
[Round "9.11"]
[White "Starosta, Martyna"]
[Black "Czarnecka, Lidia"]
[Result "1/2-1/2"]
[ECO "A01"]
[WhiteElo "1918"]
[BlackElo "1940"]
[Annotator "NA RC"]
[PlyCount "194"]
[EventDate "2022.06.24"]
[EventType "team-tourn"]
[EventCountry "POL"]
[SourceTitle "playchess.com"]
[Source "ChessBase"]
[SourceQuality "1"]
[TimeControl "40/5400+30:1800+30"]

1. b3 {[%emt 0:00:02]} d5 {[%emt 0:01:17]} 2. Bb2 {[%emt 0:00:09]} Nf6 {[%emt 0:00:58]} 3. Nf3 {[%emt 0:00:06]} c5 {[%emt 0:00:46]} 4. e3 {[%emt 0:00:13]} Nc6 {[%emt 0:01:12]} 5. Bb5 {[%emt 0:00:07]} Qb6 {[%emt 0:02:26]} 6. Bxc6+ {[%emt 0:10:15]} bxc6 {[%emt 0:04:17]} 7. O-O {[%emt 0:02:52]} e6 {[%emt 0:00:23]} 8. Nc3 {[%emt 0:00:25]} Be7 {[%emt 0:02:33]} 9. Ne5 {[%emt 0:02:56]} O-O {[%emt 0:03:06]} 10. d3 {[%emt 0:04:43]} Ba6 {[%emt 0:01:46]} 11. Na4 {[%emt 0:02:19]} Qc7 {[%emt 0:00:30]} 12. c4 {[%emt 0:02:29]} Nd7 {[%emt 0:14:53]} 13. Nxd7 {[%emt 0:03:19]} Qxd7 {[%emt 0:00:08]} 14. Ba3 {[%emt 0:00:26]} Rfd8 {[%emt 0:09:31]} 15. Bxc5 {[%emt 0:03:54]} e5 {[%emt 0:02:16]} 16. Qf3 {[%emt 0:04:59]} e4 {[%emt 0:03:51]} 17. Qg3 {[%emt 0:10:24]} exd3 {[%emt 0:03:54]} 18. Bd4 {[%emt 0:00:55]} f6 {[%emt 0:00:36]} 19. c5 {[%emt 0:00:33]} Qf5 {[%emt 0:01:27]} 20. Qc7 {[%emt 0:09:14]} Qe6 {[%emt 0:05:18]} 21. Rfd1 {[%emt 0:01:02]} Rdb8 {[%emt 0:02:47]} 22. Qa5 {[%emt 0:06:13]} Bb5 {[%emt 0:03:10]} 23. Nb2 {[%emt 0:00:30]} Bd8 {[%emt 0:00:23]} 24. Qc3 {[%emt 0:01:09]} Bc7 {[%emt 0:00:13]} 25. Nxd3 {[%emt 0:02:13]} h5 {[%emt 0:02:18]} 26. Re1 {[%emt 0:06:33]} Qf5 {[%emt 0:04:26]} 27. Rad1 {[%emt 0:03:29]} h4 {[%emt 0:04:14]} 28. h3 {[%emt 0:05:36]} Kf7 {[%emt 0:01:48]} 29. Qc2 {[%emt 0:03:24]} Qe4 {[%emt 0:05:29]} 30. Bc3 {[%emt 0:06:04]} a5 {[%emt 0:02:56]} 31. Rd2 {[%emt 0:00:25]} a4 {[%emt 0:02:33]} 32. b4 {[%emt 0:02:11]} Re8 {[%emt 0:00:58]} 33. Nc1 {[%emt 0:01:22]} Bc4 {[%emt 0:01:29]} 34. Qxe4 {[%emt 0:01:11]} Rxe4 {[%emt 0:00:17]} 35. a3 {[%emt 0:00:15]} g5 {[%emt 0:00:51]} 36. Ne2 {[%emt 0:01:14]} Bxe2 {[%emt 0:04:39]} 37. Rexe2 {[%emt 0:00:43]} Be5 {[%emt 0:01:10]} 38. Bxe5 {[%emt 0:01:28]} fxe5 {[%emt 0:00:50]} 39. Rc2 {[%emt 0:02:32]} Rd8 {[%emt 0:01:51]} 40. Kf1 {[%emt 0:00:00]} Ke6 {[%emt 0:00:00]} 41. Ke1 {[%emt 0:07:34]} d4 {[%emt 0:06:17]} 42. exd4 {[%emt 0:01:27]} Rexd4 {[%emt 0:00:36]} 43. Rcd2 {[%emt 0:01:49]} Kd5 {[%emt 0:01:39]} 44. Rc2 {[%emt 0:04:26]} e4 {[%emt 0:06:30]} 45. Red2 {[%emt 0:01:58]} Rd3 {[%emt 0:01:02]} 46. Rxd3+ {[%emt 0:05:25]} exd3 {[%emt 0:00:08]} 47. Rc3 {[%emt 0:00:38]} Re8+ {[%emt 0:01:17]} 48. Kd2 {[%emt 0:00:09]} Re2+ {[%emt 0:00:10]} 49. Kxd3 {[%emt 0:00:05]} Rxf2 {[%emt 0:00:03]} 50. Rc2 {[%emt 0:00:07]} Rf1 {[%emt 0:03:46]} 51. Kc3 {[%emt 0:06:02]} Rg1 {[%emt 0:03:55]} 52. Rd2+ {[%emt 0:01:44]} Ke5 {[%emt 0:01:55]} 53. Rb2 {[%emt 0:01:18]} Rc1+ {[%emt 0:03:06]} 54. Rc2 {[%emt 0:00:15]} Ra1 {[%emt 0:00:36]} 55. Kb2 {[%emt 0:00:02]} Rd1 {[%emt 0:00:44]} 56. b5 {[%emt 0:02:22]} Rd3 {[%emt 0:03:40]} 57. b6 {[%emt 0:04:28]} Kd4 {[%emt 0:01:49]} 58. Kc1 {[%emt 0:00:47]} Re3 {[%emt 0:01:56]} 59. Kd2 {[%emt 0:00:22]} Rb3 {[%emt 0:00:46]} 60. Kc1 {[%emt 0:00:31]} Re3 {[%emt 0:00:33]} 61. Kb2 {[%emt 0:00:09]} Rb3+ {[%emt 0:00:30]} 62. Ka2 {[%emt 0:00:05]} Re3 {[%emt 0:00:03]} 63. Rb2 {[%emt 0:00:29]} Re8 {[%emt 0:00:03]} 64. Rc2 {[%emt 0:00:42]} Re3 {[%emt 0:00:09]} 65. Kb1 {[%emt 0:00:24]} Re7 {[%emt 0:00:46]} 66. Rb2 {[%emt 0:00:28]} Rb7 {[%emt 0:00:03]} 67. Rc2 {[%emt 0:00:22]} Re7 {[%emt 0:00:03]} 68. Ka2 {[%emt 0:00:19]} Re3 {[%emt 0:00:54]} 69. Kb1 {[%emt 0:00:41]} Re7 {[%emt 0:00:10]} 70. Kc1 {[%emt 0:00:11]} Re3 {[%emt 0:00:24]} 71. Rb2 {[%emt 0:00:38]} Re8 {[%emt 0:00:04]} 72. b7 {[%emt 0:01:05]} Rb8 {[%emt 0:00:04]} 73. Rb4+ {[%emt 0:00:26]} Kxc5 {[%emt 0:00:06]} 74. Rxa4 {[%emt 0:00:04]} Rxb7 {[%emt 0:00:14]} 75. Ra5+ {[%emt 0:00:04]} Rb5 {[%emt 0:02:06]} 76. Rxb5+ $2 {[%emt 0:00:58]} (76. Ra4 $11) 76... cxb5 {[%emt 0:01:06]} ({Weaker is} 76... Kxb5 77. Kb2 Kc4 78. Kc2 $11) 77. Kb2 {[%emt 0:01:18]} Kd4 {[%emt 0:01:01]} 78. Kb3 {[%emt 0:00:04]} Ke3 {[%emt 0:00:03]} 79. Kb4 {[%emt 0:00:05]} Kf2 {[%emt 0:00:01]} 80. Kxb5 {[%emt 0:00:05]} Kxg2 {[%emt 0:00:02]} 81. a4 {[%emt 0:00:23]} Kxh3 {[%emt 0:00:03]} 82. a5 {[%emt 0:00:05]} g4 {[%emt 0:00:01]} 83. a6 {[%emt 0:00:09]} g3 {[%emt 0:00:00]} 84. a7 {[%emt 0:00:05]} g2 {[%emt 0:00:02]} 85. a8=Q {[%emt 0:00:12]} g1=Q 86. Qf3+ {[%emt 0:00:23]} Qg3 {[%emt 0:01:10]} 87. Qh1+ {[%emt 0:00:08]} (87. Qf5+ $142 Kg2 88. Qe4+ Kf1 89. Qc4+ Kg1 90. Qc1+ Kg2 91. Qd2+ Qf2 92. Qd5+ Kg3 93. Qg5+ Kh2 94. Qe5+ Kh3 95. Kc4) 87... Kg4 {[%emt 0:00:36]} 88. Qe4+ {[%emt 0:00:17]} Qf4 {[%emt 0:00:02]} 89. Qg2+ {[%emt 0:00:59]} Kh5 {[%emt 0:00:12]} 90. Qe2+ {[%emt 0:00:16]} Kg5 {[%emt 0:00:13]} 91. Qe7+ {[%emt 0:00:12]} Qf6 {[%emt 0:00:12]} 92. Qe3+ {[%emt 0:00:06]} Kg6 {[%emt 0:00:16]} 93. Kc4 {[%emt 0:00:36]} Qf1+ {[%emt 0:00:50]} 94. Kd4 {[%emt 0:01:13]} h3 $11 {[%emt 0:00:10]} (94... Kf5 $19 95. Qe4+ Kg5 96. Qe5+ Kg4 97. Qg7+ Kh3 98. Qd7+ Kg3 99. Qg7+ Kh2 100. Qe5+ Kg2 101. Qg5+ Kh3) 95. Qg3+ {[%emt 0:00:07]} Kh5 {[%emt 0:00:05]} (95... Kf5 $5 96. Ke3 Qh1 $11) 96. Ke3 {[%emt 0:00:26]} Qc1+ {[%emt 0:00:17]} 97. Kf2 {[%emt 0:00:32]} Qd2+ {[%emt 0:01:23]} 1/2-1/2

[Event "Polish Youth 1st League 2022"]
[Site "Lublin"]
[Date "2022.07.03"]
[Round "9.12"]
[White "Slusarczyk, Anna"]
[Black "Kulczycka, Zofia"]
[Result "1-0"]
[ECO "A48"]
[WhiteElo "1544"]
[BlackElo "1564"]
[Annotator "NA RC"]
[PlyCount "93"]
[EventDate "2022.06.24"]
[EventType "team-tourn"]
[EventCountry "POL"]
[SourceTitle "playchess.com"]
[Source "ChessBase"]
[SourceQuality "1"]
[TimeControl "40/5400+30:1800+30"]

1. d4 {[%emt 0:00:01]} Nf6 {[%emt 0:00:09]} 2. Nf3 {[%emt 0:00:03]} g6 {[%emt 0:00:22]} 3. Bf4 {[%emt 0:00:05]} Bg7 {[%emt 0:01:02]} 4. e3 {[%emt 0:00:09]} O-O {[%emt 0:00:17]} 5. Be2 {[%emt 0:01:34]} d6 {[%emt 0:00:49]} 6. h3 {[%emt 0:00:04]} Nfd7 {[%emt 0:07:38]} 7. Bh2 {[%emt 0:00:06]} e5 {[%emt 0:01:23]} 8. c3 {[%emt 0:03:13]} Re8 {[%emt 0:08:29]} 9. O-O {[%emt 0:01:56]} Nc6 {[%emt 0:02:53]} 10. a4 {[%emt 0:09:33]} f5 {[%emt 0:03:45]} 11. Na3 {[%emt 0:00:46]} Kh8 {[%emt 0:01:13]} 12. dxe5 {[%emt 0:02:30]} Ndxe5 {[%emt 0:08:26]} 13. Nd4 {[%emt 0:00:12]} Nxd4 {[%emt 0:02:34]} 14. cxd4 {[%emt 0:01:23]} Nd7 {[%emt 0:01:00]} 15. Rc1 {[%emt 0:00:33]} a6 {[%emt 0:00:39]} 16. Qc2 {[%emt 0:11:07]} c5 {[%emt 0:10:19]} 17. Nc4 {[%emt 0:01:12]} cxd4 {[%emt 0:01:16]} 18. Nxd6 {[%emt 0:00:14]} Rf8 {[%emt 0:01:08]} 19. exd4 {[%emt 0:08:02]} Bxd4 {[%emt 0:03:40]} 20. Rfd1 {[%emt 0:03:56]} Qb6 {[%emt 0:07:47]} 21. Bc4 {[%emt 0:01:29]} Qxb2 {[%emt 0:05:40]} 22. Qxb2 {[%emt 0:01:26]} Bxb2 {[%emt 0:00:08]} 23. Rc2 {[%emt 0:00:04]} Bf6 {[%emt 0:07:19]} 24. Nxc8 {[%emt 0:01:36]} Raxc8 {[%emt 0:03:44]} 25. Rxd7 {[%emt 0:00:04]} Rfe8 {[%emt 0:00:44]} 26. Kf1 {[%emt 0:05:35]} b5 {[%emt 0:00:34]} 27. axb5 {[%emt 0:00:15]} axb5 {[%emt 0:00:08]} 28. Bb3 {[%emt 0:01:18]} Rxc2 29. Bxc2 {[%emt 0:00:04]} b4 {[%emt 0:01:08]} 30. Rb7 {[%emt 0:00:38]} Bc3 {[%emt 0:00:11]} 31. Rb8 {[%emt 0:00:20]} Rxb8 {[%emt 0:00:22]} 32. Bxb8 {[%emt 0:00:03]} Kg7 {[%emt 0:00:44]} 33. Ke2 {[%emt 0:01:01]} Kf6 {[%emt 0:00:35]} 34. Kd3 {[%emt 0:04:18]} Kg5 {[%emt 0:01:17]} 35. g3 {[%emt 0:03:46]} Be1 {[%emt 0:01:25]} 36. Bf4+ {[%emt 0:00:12]} Kf6 {[%emt 0:00:16]} 37. Be3 {[%emt 0:00:03]} Ke5 {[%emt 0:01:53]} 38. Bd4+ {[%emt 0:00:17]} Kd6 {[%emt 0:00:19]} 39. Bb3 {[%emt 0:00:17]} h6 {[%emt 0:00:29]} 40. Ke2 {[%emt 0:00:00]} Bc3 {[%emt 0:00:00]} 41. Bxc3 {[%emt 0:00:22]} bxc3 {[%emt 0:00:32]} 42. Kd3 {[%emt 0:00:15]} Ke5 {[%emt 0:00:06]} 43. f4+ {[%emt 0:00:15]} Kf6 {[%emt 0:00:09]} 44. Kxc3 {[%emt 0:00:03]} g5 {[%emt 0:00:06]} 45. Kd4 {[%emt 0:00:18]} gxf4 {[%emt 0:01:24]} 46. gxf4 {[%emt 0:00:10]} h5 {[%emt 0:00:17]} 47. h4 {[%emt 0:00:02]} 1-0

[Event "Polish Youth 1st League 2022"]
[Site "Lublin"]
[Date "2022.07.03"]
[Round "9.13"]
[White "Wojdak, Jan"]
[Black "Jedraszek, Pawel"]
[Result "0-1"]
[ECO "A05"]
[WhiteElo "2144"]
[BlackElo "1933"]
[Annotator "RC"]
[PlyCount "62"]
[EventDate "2022.06.24"]
[EventType "team-tourn"]
[EventCountry "POL"]
[SourceTitle "playchess.com"]
[Source "ChessBase"]
[SourceQuality "1"]
[TimeControl "40/5400+30:1800+30"]

1. Nf3 {[%emt 0:01:18]} Nf6 {[%emt 0:00:08]} 2. b3 {[%emt 0:00:04]} g6 {[%emt 0:01:47]} 3. Bb2 {[%emt 0:00:05]} Bg7 {[%emt 0:00:05]} 4. e3 {[%emt 0:00:14]} O-O {[%emt 0:00:49]} 5. Be2 {[%emt 0:00:03]} d6 {[%emt 0:00:58]} 6. d4 {[%emt 0:00:07]} Nbd7 {[%emt 0:01:10]} 7. O-O {[%emt 0:00:07]} e5 {[%emt 0:00:48]} 8. c4 {[%emt 0:02:51]} Re8 {[%emt 0:01:54]} 9. Nc3 {[%emt 0:00:35]} e4 {[%emt 0:02:14]} 10. Nd2 {[%emt 0:00:04]} Nf8 {[%emt 0:04:47]} 11. b4 {[%emt 0:01:30]} c6 {[%emt 0:05:50]} 12. Qb3 {[%emt 0:00:29]} Bf5 {[%emt 0:01:22]} 13. a4 {[%emt 0:05:03]} h5 {[%emt 0:00:39]} 14. Rfe1 {[%emt 0:04:42]} N8h7 {[%emt 0:04:55]} 15. b5 {[%emt 0:01:27]} Qd7 {[%emt 0:03:45]} 16. Ba3 {[%emt 0:00:22]} h4 {[%emt 0:03:13]} 17. Rab1 {[%emt 0:00:09]} Rac8 {[%emt 0:08:50]} 18. a5 {[%emt 0:02:45]} Ng5 {[%emt 0:01:42]} 19. Qa4 {[%emt 0:02:33]} Bg4 {[%emt 0:07:26]} 20. Bf1 {[%emt 0:02:19]} Bf8 {[%emt 0:07:25]} 21. a6 {[%emt 0:01:46]} bxa6 {[%emt 0:01:06]} 22. bxa6 {[%emt 0:00:37]} Qf5 {[%emt 0:07:42]} 23. Ne2 {[%emt 0:06:59]} Nh5 {[%emt 0:03:44]} 24. d5 {[%emt 0:32:30]} c5 {[%emt 0:01:59]} 25. Rb7 {[%emt 0:02:31]} Re7 {[%emt 0:05:28]} 26. Bc1 {[%emt 0:00:54]} h3 {[%emt 0:03:39]} 27. g3 {[%emt 0:00:27]} Bf3 {[%emt 0:00:33]} 28. Nf4 {[%emt 0:01:23]} Nf6 {[%emt 0:01:10]} 29. Bb2 {[%emt 0:03:49]} Ng4 {[%emt 0:00:48]} 30. Qb3 {[%emt 0:10:07]} Rce8 {[%emt 0:03:00]} 31. Nxh3 {[%emt 0:02:12]} Bd1 {[%emt 0:02:55]} 0-1

[Event "Polish Youth 1st League 2022"]
[Site "Lublin"]
[Date "2022.07.03"]
[Round "9.14"]
[White "Klaska, Szymon"]
[Black "Jendrowiak, Maciej"]
[Result "1/2-1/2"]
[ECO "D05"]
[WhiteElo "1563"]
[BlackElo "1713"]
[Annotator "NA RC"]
[PlyCount "120"]
[EventDate "2022.06.24"]
[EventType "team-tourn"]
[EventCountry "POL"]
[SourceTitle "playchess.com"]
[Source "ChessBase"]
[SourceQuality "1"]
[TimeControl "40/5400+30:1800+30"]

1. d4 {[%emt 0:00:40]} d5 {[%emt 0:00:13]} 2. Nf3 {[%emt 0:00:37]} e6 {[%emt 0:01:09]} 3. e3 Nf6 4. Bd3 {[%emt 0:02:07]} Nbd7 {[%emt 0:02:05]} 5. Nbd2 {[%emt 0:03:02]} c5 {[%emt 0:02:22]} 6. b3 {[%emt 0:01:25]} b6 {[%emt 0:01:02]} 7. O-O {[%emt 0:00:27]} Bd6 {[%emt 0:00:32]} 8. Bb2 {[%emt 0:00:34]} Bb7 {[%emt 0:00:28]} 9. Qe2 {[%emt 0:00:51]} O-O {[%emt 0:05:00]} 10. e4 {[%emt 0:02:20]} dxe4 {[%emt 0:07:28]} 11. Nxe4 {[%emt 0:00:39]} Nxe4 {[%emt 0:06:01]} 12. Bxe4 {[%emt 0:00:11]} Bxe4 {[%emt 0:00:52]} 13. Qxe4 {[%emt 0:00:09]} Nf6 {[%emt 0:00:52]} 14. Qd3 {[%emt 0:01:51]} Nd5 {[%emt 0:12:28]} 15. Rad1 {[%emt 0:05:15]} Qf6 {[%emt 0:11:08]} 16. g3 {[%emt 0:14:18]} Qh6 {[%emt 0:12:34]} 17. a3 {[%emt 0:03:58]} Rad8 {[%emt 0:05:59]} 18. dxc5 {[%emt 0:04:15]} Bxc5 {[%emt 0:01:31]} 19. c4 {[%emt 0:00:29]} Nf4 {[%emt 0:13:32]} 20. Qxd8 {[%emt 0:09:25]} Qh3 {[%emt 0:01:11]} 21. Nh4 {[%emt 0:02:02]} Ne2+ {[%emt 0:03:45]} 22. Kh1 {[%emt 0:00:12]} Qxf1+ {[%emt 0:01:16]} 23. Rxf1 {[%emt 0:00:22]} Rxd8 {[%emt 0:00:02]} 24. Nf3 {[%emt 0:00:48]} Rd3 {[%emt 0:00:44]} 25. b4 {[%emt 0:01:29]} Bxb4 {[%emt 0:07:21]} 26. axb4 {[%emt 0:03:04]} Rxf3 {[%emt 0:00:09]} 27. Rd1 {[%emt 0:01:03]} h6 {[%emt 0:00:29]} 28. Kg2 {[%emt 0:00:55]} Rb3 {[%emt 0:00:36]} 29. Rd2 {[%emt 0:00:12]} Nc3 {[%emt 0:00:24]} 30. Bxc3 {[%emt 0:00:55]} Rxc3 {[%emt 0:00:04]} 31. Rd8+ {[%emt 0:00:21]} Kh7 {[%emt 0:00:04]} 32. Rc8 {[%emt 0:00:27]} b5 {[%emt 0:01:54]} 33. c5 {[%emt 0:00:13]} Rc4 {[%emt 0:00:44]} 34. Rc7 {[%emt 0:00:22]} Kg6 {[%emt 0:01:29]} 35. Rxa7 {[%emt 0:00:14]} Rxb4 {[%emt 0:00:11]} 36. c6 {[%emt 0:00:12]} Rc4 {[%emt 0:00:06]} 37. Rb7 {[%emt 0:00:07]} Rxc6 {[%emt 0:00:10]} 38. Rxb5 {[%emt 0:00:05]} Rc2 {[%emt 0:00:41]} 39. h4 {[%emt 0:02:56]} f5 {[%emt 0:00:55]} 40. Rb6 {[%emt 0:00:00]} Kf6 {[%emt 0:00:00]} 41. Ra6 {[%emt 0:00:53]} g5 {[%emt 0:03:01]} 42. hxg5+ {[%emt 0:00:14]} hxg5 {[%emt 0:00:02]} 43. Rb6 {[%emt 0:00:34]} Rd2 {[%emt 0:02:25]} 44. Ra6 {[%emt 0:00:19]} Ke5 {[%emt 0:00:20]} 45. Rb6 {[%emt 0:00:25]} Rd6 {[%emt 0:00:54]} 46. Rb5+ {[%emt 0:00:14]} Ke4 {[%emt 0:01:25]} 47. Rb8 {[%emt 0:03:13]} f4 {[%emt 0:05:04]} 48. gxf4 {[%emt 0:00:12]} gxf4 {[%emt 0:00:08]} 49. Rb4+ {[%emt 0:00:18]} Rd4 {[%emt 0:00:23]} 50. Rb5 {[%emt 0:00:38]} Rd5 {[%emt 0:04:25]} 51. Rb4+ {[%emt 0:00:21]} Kf5 {[%emt 0:00:05]} 52. Ra4 {[%emt 0:00:31]} e5 {[%emt 0:00:06]} 53. Ra8 {[%emt 0:01:07]} e4 {[%emt 0:00:52]} 54. Rf8+ {[%emt 0:00:22]} Ke5 {[%emt 0:00:11]} 55. Re8+ {[%emt 0:01:14]} Kd4 {[%emt 0:00:09]} 56. Rg8 {[%emt 0:01:58]} Kd3 {[%emt 0:01:22]} 57. Rf8 {[%emt 0:03:45]} e3 {[%emt 0:01:03]} 58. Kf3 {[%emt 0:01:22]} Kd2 {[%emt 0:00:28]} 59. Ra8 {[%emt 0:01:58]} Rd3 {[%emt 0:07:53]} 60. Ra2+ {[%emt 0:00:51]} Ke1 {[%emt 0:02:35]} 1/2-1/2

[Event "Polish Youth 1st League 2022"]
[Site "Lublin"]
[Date "2022.07.03"]
[Round "9.15"]
[White "Wierzbicki, Dawid"]
[Black "Ugorek, Kacper"]
[Result "1/2-1/2"]
[ECO "B27"]
[WhiteElo "1556"]
[BlackElo "1696"]
[Annotator "NA RC"]
[PlyCount "108"]
[EventDate "2022.06.24"]
[EventType "team-tourn"]
[EventCountry "POL"]
[SourceTitle "playchess.com"]
[Source "ChessBase"]
[SourceQuality "1"]
[TimeControl "40/5400+30:1800+30"]

1. e4 {[%emt 0:00:04]} c5 {[%emt 0:00:07]} 2. Nf3 {[%emt 0:00:20]} g6 {[%emt 0:00:10]} 3. d3 {[%emt 0:00:55]} Bg7 {[%emt 0:00:28]} 4. g3 {[%emt 0:00:11]} Nc6 {[%emt 0:00:27]} 5. Bg2 {[%emt 0:00:32]} Rb8 {[%emt 0:00:56]} 6. O-O {[%emt 0:00:38]} e6 {[%emt 0:01:02]} 7. c3 {[%emt 0:00:49]} Nge7 {[%emt 0:02:47]} 8. Na3 {[%emt 0:07:42]} b5 {[%emt 0:06:53]} 9. d4 {[%emt 0:02:36]} cxd4 {[%emt 0:05:33]} 10. cxd4 {[%emt 0:00:05]} d5 {[%emt 0:00:26]} 11. e5 {[%emt 0:06:19]} b4 {[%emt 0:02:55]} 12. Nc2 {[%emt 0:00:26]} O-O {[%emt 0:02:46]} 13. Ne3 {[%emt 0:03:05]} Ba6 {[%emt 0:04:08]} 14. Re1 {[%emt 0:00:16]} b3 {[%emt 0:06:28]} 15. axb3 {[%emt 0:01:36]} Qb6 {[%emt 0:00:40]} 16. Bd2 {[%emt 0:04:15]} Bd3 {[%emt 0:08:42]} 17. Bc3 {[%emt 0:02:48]} Be4 {[%emt 0:01:36]} 18. Ra3 {[%emt 0:02:51]} Rfc8 {[%emt 0:05:40]} 19. Nh4 {[%emt 0:02:52]} Bxg2 {[%emt 0:00:23]} 20. Kxg2 {[%emt 0:03:57]} Bf8 {[%emt 0:09:16]} 21. Ng4 {[%emt 0:07:51]} Kg7 {[%emt 0:04:59]} 22. Qd2 {[%emt 0:00:46]} Ng8 {[%emt 0:00:14]} 23. Ra4 {[%emt 0:02:35]} Qxb3 {[%emt 0:03:08]} 24. Rea1 {[%emt 0:00:55]} Be7 {[%emt 0:00:49]} 25. Nf3 {[%emt 0:01:19]} Rb7 {[%emt 0:03:36]} 26. h4 {[%emt 0:04:46]} h5 {[%emt 0:00:47]} 27. Ne3 {[%emt 0:00:49]} Nh6 {[%emt 0:00:50]} 28. Ne1 {[%emt 0:01:09]} Rbc7 {[%emt 0:02:30]} 29. Nd3 {[%emt 0:01:34]} Qb8 {[%emt 0:02:43]} 30. Ra6 {[%emt 0:04:08]} Rb7 {[%emt 0:01:44]} 31. Kh3 {[%emt 0:04:58]} Rcc7 {[%emt 0:04:27]} 32. f3 {[%emt 0:00:33]} Nb4 {[%emt 0:01:08]} 33. Nxb4 {[%emt 0:04:09]} Bxb4 {[%emt 0:00:20]} 34. Nd1 {[%emt 0:01:01]} Bxc3 {[%emt 0:01:30]} 35. bxc3 {[%emt 0:00:07]} Rb1 {[%emt 0:02:56]} 36. Kg2 {[%emt 0:07:00]} Rxa1 {[%emt 0:01:53]} 37. Rxa1 {[%emt 0:00:26]} Qb5 {[%emt 0:01:22]} 38. Ra2 {[%emt 0:01:09]} Nf5 {[%emt 0:01:28]} 39. g4 {[%emt 0:01:37]} hxg4 {[%emt 0:01:01]} 40. fxg4 {[%emt 0:00:00]} Nh6 {[%emt 0:00:00]} 41. Rb2 {[%emt 0:01:54]} Qc4 {[%emt 0:06:46]} 42. Rb4 {[%emt 0:02:30]} Qa6 {[%emt 0:01:49]} 43. Qf4 {[%emt 0:06:00]} Qc8 {[%emt 0:13:32]} 44. Rb2 {[%emt 0:01:47]} Qd8 {[%emt 0:00:43]} 45. Kg3 {[%emt 0:00:35]} a5 {[%emt 0:00:15]} 46. Qf6+ {[%emt 0:05:35]} Qxf6 {[%emt 0:00:37]} 47. exf6+ {[%emt 0:00:12]} Kh7 {[%emt 0:01:08]} 48. Ra2 {[%emt 0:02:01]} e5 {[%emt 0:04:51]} 49. dxe5 {[%emt 0:09:33]} Rc4 {[%emt 0:00:45]} 50. Nf2 {[%emt 0:00:47]} Rxc3+ {[%emt 0:01:03]} 51. Kf4 {[%emt 0:01:32]} Rc4+ {[%emt 0:00:56]} 52. Kg5 {[%emt 0:05:45]} a4 {[%emt 0:03:50]} 53. Ra3 {[%emt 0:05:11]} Rc2 {[%emt 0:06:18]} 54. Nd3 {[%emt 0:01:08]} Rc4 {[%emt 0:00:17]} 1/2-1/2

[Event "Polish Youth 1st League 2022"]
[Site "Lublin"]
[Date "2022.07.03"]
[Round "9.16"]
[White "Dobosiewicz, Dawid"]
[Black "Oles, Mateusz"]
[Result "1/2-1/2"]
[ECO "C02"]
[WhiteElo "1795"]
[BlackElo "1201"]
[Annotator "NA RC"]
[PlyCount "93"]
[EventDate "2022.06.24"]
[EventType "team-tourn"]
[EventCountry "POL"]
[SourceTitle "playchess.com"]
[Source "ChessBase"]
[SourceQuality "1"]
[TimeControl "40/5400+30:1800+30"]

1. e4 {[%emt 0:00:03]} e6 {[%emt 0:00:09]} 2. d4 {[%emt 0:00:05]} d5 {[%emt 0:00:05]} 3. e5 {[%emt 0:00:04]} c5 {[%emt 0:00:06]} 4. c3 {[%emt 0:00:04]} Nc6 {[%emt 0:00:04]} 5. Nf3 {[%emt 0:00:06]} Bd7 {[%emt 0:00:07]} 6. Be2 {[%emt 0:00:09]} Nge7 {[%emt 0:00:40]} 7. Na3 {[%emt 0:00:45]} cxd4 {[%emt 0:03:09]} 8. cxd4 {[%emt 0:00:05]} Qb6 {[%emt 0:00:41]} 9. O-O {[%emt 0:01:07]} Nb4 {[%emt 0:02:19]} 10. Bd2 {[%emt 0:02:18]} Nec6 {[%emt 0:02:12]} 11. Bc3 {[%emt 0:01:23]} Be7 {[%emt 0:01:42]} 12. Nb1 {[%emt 0:06:39]} a5 {[%emt 0:04:18]} 13. a3 {[%emt 0:04:49]} Na6 {[%emt 0:00:19]} 14. Nbd2 {[%emt 0:09:37]} O-O {[%emt 0:03:19]} 15. Nb3 {[%emt 0:08:30]} Rfc8 {[%emt 0:15:07]} 16. Nc1 {[%emt 0:02:53]} Qc7 {[%emt 0:23:12]} 17. Qd2 {[%emt 0:00:51]} b6 {[%emt 0:01:45]} 18. Nd3 {[%emt 0:02:08]} b5 {[%emt 0:04:51]} 19. b4 {[%emt 0:00:22]} axb4 {[%emt 0:01:56]} 20. axb4 {[%emt 0:00:30]} Qb7 {[%emt 0:01:22]} 21. Rfb1 {[%emt 0:01:13]} Nc7 {[%emt 0:00:53]} 22. Rxa8 {[%emt 0:01:22]} Rxa8 {[%emt 0:00:28]} 23. h3 {[%emt 0:03:07]} Be8 {[%emt 0:03:31]} 24. Nc5 {[%emt 0:01:40]} Qb6 {[%emt 0:03:33]} 25. Ne1 {[%emt 0:01:26]} Bxc5 {[%emt 0:03:11]} 26. bxc5 {[%emt 0:00:48]} Qb7 {[%emt 0:00:17]} 27. Nd3 {[%emt 0:01:30]} Qa6 {[%emt 0:05:40]} 28. Nc1 {[%emt 0:02:39]} h6 {[%emt 0:06:15]} 29. Bd3 {[%emt 0:02:18]} Qb7 {[%emt 0:02:43]} 30. f4 {[%emt 0:01:05]} Bd7 {[%emt 0:01:04]} 31. g4 {[%emt 0:01:32]} Ne7 {[%emt 0:01:48]} 32. Ba5 {[%emt 0:00:31]} Rb8 {[%emt 0:02:44]} 33. Nb3 {[%emt 0:01:41]} Ra8 {[%emt 0:02:24]} 34. g5 {[%emt 0:02:09]} hxg5 {[%emt 0:00:57]} 35. fxg5 {[%emt 0:00:09]} g6 {[%emt 0:04:12]} 36. Qf4 {[%emt 0:00:23]} Ne8 {[%emt 0:00:51]} 37. Rf1 {[%emt 0:00:23]} Nf5 {[%emt 0:00:18]} 38. Bxf5 {[%emt 0:00:32]} exf5 {[%emt 0:00:13]} 39. Qd2 {[%emt 0:05:03]} Ng7 {[%emt 0:00:24]} 40. Bb6 {[%emt 0:00:00]} Bc6 {[%emt 0:00:00]} 41. Na5 {[%emt 0:00:52]} Qd7 {[%emt 0:01:26]} 42. h4 {[%emt 0:18:05]} Ra6 {[%emt 0:05:05]} 43. Re1 {[%emt 0:02:13]} Qc8 {[%emt 0:02:01]} 44. Qe2 {[%emt 0:03:20]} Qe6 {[%emt 0:00:48]} 45. Rb1 {[%emt 0:00:15]} Be8 {[%emt 0:12:18]} 46. Rb2 {[%emt 0:01:53]} Bd7 {[%emt 0:02:10]} 47. Rb1 {[%emt 0:00:10]} 1/2-1/2